lending/lending_fUSD_20250418
["ID","MTS","AMOUNT","RATE_DAILY","PERIOD"]
[358335284,1744947040946,-150.0,0.0007,120]
[358335285,1744947040955,-150.0,0.0007,120]
[358335286,1744947040964,-150.0,0.0007,120]
[358335287,1744947040973,-150.0,0.0007,120]
[358335288,1744947040984,-150.0,0.0007,120]
[358335289,1744947040993,-150.0,0.0007,120]
[358335290,1744947041002,-150.0,0.0007,120]
[358335291,1744947041011,-150.0,0.0007,120]
[358335292,1744947041021,-150.0,0.0007,120]
[358335293,1744947041031,-150.0,0.0007,120]
[358335294,1744947041041,-150.0,0.0007,120]
[358335295,1744947041049,-150.0,0.0007,120]
[358335296,1744947041059,-150.0,0.0007,120]
[358335297,1744947041067,-150.0,0.0007,120]
[358335298,1744947041077,-150.0,0.0007,120]
[358335299,1744947041086,-250.0,0.0007,120]
[358335300,1744947041095,-250.0,0.0007,120]
[358335301,1744947041105,-250.0,0.0007,120]
[358335302,1744947041114,-150.0,0.0007,120]
[358335303,1744947041123,-150.0,0.0007,120]
[358335304,1744947041132,-150.0,0.0007,120]
[358335305,1744947041141,-150.0,0.0007,120]
[358335306,1744947041150,-150.0,0.0007,120]
[358335307,1744947041159,-150.0,0.0007,120]
[358335308,1744947041169,-150.0,0.0007,120]
[358335309,1744947041178,-150.0,0.0007,120]
[358335310,1744947041187,-150.0,0.0007,120]
[358335311,1744947041197,-150.0,0.0007,120]
[358335312,1744947041206,-150.0,0.0007,120]
[358335313,1744947041215,-150.0,0.0007,120]
[358335314,1744947041224,-150.0,0.0007,120]
[358335315,1744947041233,-150.0,0.0007,120]
[358335316,1744947041243,-150.0,0.0007,120]
[358335317,1744947041251,-150.0,0.0007,120]
[358335318,1744947041261,-150.0,0.0007,120]
[358335319,1744947041270,-150.0,0.0007,120]
[358335320,1744947041279,-150.0,0.0007,120]
[358335321,1744947041288,-150.0,0.0007,120]
[358335322,1744947041297,-150.0,0.0007,120]
[358335323,1744947041307,-150.0,0.0007,120]
[358335324,1744947041316,-150.0,0.0007,120]
[358335325,1744947041326,-150.0,0.0007,120]
[358335326,1744947041335,-150.0,0.0007,120]
[358335327,1744947041344,-150.0,0.0007,120]
[358335328,1744947041354,-150.0,0.0007,120]
[358335329,1744947041364,-150.0,0.0007,120]
[358335330,1744947041373,-150.0,0.0007,120]
[358335331,1744947041383,-37968.87548208,0.0007015,2]
[358335332,1744947041393,-944.26,0.00071136,2]
[358335333,1744947041403,-250.0,0.000715,120]
[358335334,1744947041412,-250.0,0.000715,120]
[358335335,1744947041422,-250.0,0.000715,120]
[358335336,1744947041431,-951.40639523,0.00071965,80]
[358335337,1744947041440,-500.0,0.00072153,14]
[358335338,1744947041450,-500.0,0.00072871,15]
[358335339,1744947041459,-159.46628018,0.00072871,15]
[358335340,1744947041468,-162.97523404,0.00072871,14]
[358335341,1744947041479,-499.02863173,0.00072871,15]
[358335342,1744947041488,-500.0,0.00072871,14]
[358335343,1744947041498,-500.0,0.00072871,15]
[358335344,1744947041507,-500.8545788,0.00072871,15]
[358335345,1744947041516,-500.0,0.00072871,14]
[358335346,1744947041526,-506.74044406,0.00072871,14]
[358335347,1744947041535,-500.0,0.00072871,15]
[358335348,1744947041544,-500.0,0.00072871,15]
[358335349,1744947041554,-523.5210164,0.00072871,15]
[358335350,1744947041563,-151.93580187,0.00072871,15]
[358335351,1744947041572,-500.0,0.00072871,15]
[358335352,1744947041581,-250.0,0.00073,120]
[358335353,1744947041590,-1000.0,0.00073021,120]
[358335354,1744947041600,-944.26,0.000734,2]
[358335355,1744947041609,-944.26,0.00075663,2]
[358335356,1744947041618,-256.03861324,0.00077043,28]
[358335357,1744947041627,-500.0,0.00077257,120]
[358335358,1744947041637,-1001.95706731,0.00077633,14]
[358335359,1744947041646,-944.26,0.00077927,2]
[358335360,1744947041655,-873.07642261,0.00078351,15]
[358335361,1744947041664,-1000.0,0.00078351,14]
[358335362,1744947041674,-503.89381108,0.00078351,15]
[358335363,1744947041684,-501.39724127,0.00078351,14]
[358335364,1744947041693,-738.19731123,0.00078351,15]
[358335365,1744947041702,-1000.0,0.00078351,15]
[358335366,1744947041712,-1000.0,0.00078351,15]
[358335367,1744947041722,-7971.02077173,0.00079726,15]
[358335368,1744947041732,-1725.19362112,0.00079885,120]
[358335369,1744947041741,-2100.0,0.000799,29]
[358335370,1744947041751,-200.0,0.0008,8]
[358335371,1744947041760,-15425.73541858,0.0008,30]
[358335372,1744947041769,-241.658637,0.0008,120]
[358335373,1744947041778,-70995.81890404,0.0008,2]
[358335374,1744947041946,-11392.46431645,0.0008,2]
[358335375,1744947041957,-1062.4557274,0.0008,2]
[358335376,1744947042062,-151.0,0.00069,120]
[358335377,1744947042071,-151.0,0.00069,120]
[358335378,1744947042081,-150.0,0.0007,120]
[358335379,1744947042090,-150.0,0.0007,120]
[358335380,1744947042100,-657.96086,0.0008,2]
[358335381,1744947042111,-111360.64864436,0.0008,2]
[358335382,1744947042120,-607.44,0.0008,60]
[358335383,1744947042130,-151.0,0.0008,120]
[358335384,1744947042139,-929.84271673,0.0008,120]
[358335385,1744947042149,-151.0,0.0008,120]
[358335386,1744947042158,-170.0,0.0008,120]
[358335387,1744947042168,-155.998386,0.0008,120]
[358335388,1744947042178,-151.0,0.0008,120]
[358335389,1744947042187,-151.0,0.0008,120]
[358335390,1744947042196,-151.0,0.0008,120]
[358335391,1744947042206,-151.0,0.0008,120]
[358335392,1744947042215,-944.26,0.00080191,2]
[358335393,1744947042224,-2000.0,0.00080349,4]
[358335394,1744947042234,-726.0344484,0.0008087,120]
[358335395,1744947042243,-700.0,0.0008097,120]
[358335396,1744947042252,-1616.60231902,0.0008137,30]
[358335397,1744947042262,-1999.999999,0.00082,120]
[358335398,1744947042272,-500.0,0.00082192,120]
[358335399,1744947042281,-500.0,0.00082192,120]
[358335400,1744947042291,-624.63116205,0.00082192,120]
[358335401,1744947042300,-944.26,0.00082455,2]
[358335402,1744947042310,-3450.06494937,0.000841,15]
[358335403,1744947042319,-944.26,0.00084719,2]
[358335404,1744947042328,-170.0,0.00085,120]
[358335405,1744947042337,-944.26,0.00086983,2]
[358335406,1744947042347,-500.0,0.00087277,120]
[358335407,1744947042356,-800.0,0.00087873,120]
[358335408,1744947042366,-944.26,0.00089247,2]
[358335409,1744947042375,-301.53,0.0009,2]
[358335410,1744947042385,-170.0,0.0009,120]
[358335411,1744947042394,-268.13961461,0.0009429,7]
[358335412,1744947042403,-123997.04998046,0.00095,120]
[358335413,1744947042412,-170.0,0.00095,120]
[358335414,1744947042422,-800.0,0.00097663,120]
[358335415,1744947042431,-7971.02077173,0.00099403,15]
[358335416,1744947042440,-343.24316216,0.0009999,120]
[358335417,1744947042450,-1120.0,0.001,2]
[358335418,1744947042460,-3318.12122153,0.001,30]
[358335419,1744947042470,-170.0,0.001,120]
[358335420,1744947042479,-3450.06494937,0.00100643,15]
[358335421,1744947042488,-500.0,0.00101233,120]
[358335422,1744947042498,-500.0,0.00101507,120]
[358335423,1744947042508,-500.0,0.00101781,120]
[358335424,1744947042517,-500.0,0.00102054,120]
[358335425,1744947042666,-294.75348104,0.00102097,101]
[358335426,1744947042676,-500.0,0.00102328,120]
[358335427,1744947042685,-151.0,0.00102602,120]
[358335428,1744947042695,-500.0,0.00102602,120]
[358335429,1744947042704,-500.0,0.00102876,120]
[358335430,1744947042714,-500.0,0.0010315,120]
[358335432,1744947042723,-500.0,0.00103424,120]
[358335433,1744947042732,-572.23,0.00103698,120]
[358335434,1744947042742,-256.03861324,0.00105614,28]
[358335435,1744947042751,-700.0,0.00106127,120]
[358335436,1744947042761,-512.49727494,0.00109589,15]
[358335437,1744947042771,-552.668,0.0011,120]
[358335438,1744947042780,-552.669,0.00110175,120]
[358335439,1744947042790,-500.0,0.00110215,120]
[358335440,1744947042799,-552.668,0.00110351,120]
[358335441,1744947042808,-552.669,0.00110526,120]
[358335442,1744947042818,-552.668,0.00110701,120]
[358335443,1744947042828,-169.46252897,0.00110701,120]
[358335444,1744947042837,-600.0,0.00111268,120]
[358335445,1744947042847,-607.44,0.00112,60]
[358335446,1744947042856,-700.0,0.00113326,120]
[358335447,1744947042867,-2222.0,0.00116,120]
[358335448,1744947042876,-2222.0,0.001166,120]
[358335449,1744947042885,-150.0,0.00117,120]
[358335450,1744947042894,-2222.0,0.00117,120]
[358335451,1744947042905,-7745.07,0.00117,60]
[358335452,1744947042914,-3450.06494937,0.00117186,15]
[358335453,1744947042924,-2222.0,0.00118,120]
[358335454,1744947042934,-5663.18,0.00118002,30]
[358335455,1744947042945,-13975.01,0.00118564,2]
[358335456,1744947042955,-1157.86,0.00118849,120]
[358335457,1744947042964,-150.88,0.0011887,120]
[358335458,1744947042974,-2046.242527,0.00119,120]
[358335459,1744947042984,-2222.0,0.00119,120]
[358335460,1744947042994,-7971.02077173,0.00119081,15]
[358335461,1744947043004,-700.0,0.0011997,120]
[358335462,1744947043015,-1015.2581152,0.0011999,120]
[358335463,1744947043024,-288.17,0.0012,2]
[358335464,1744947043033,-2222.0,0.0012,120]
[358335465,1744947043043,-150.88,0.0012024,120]
[358335466,1744947043052,-9316.0,0.00120685,120]
[358335467,1744947043061,-238.5111399,0.00120717,90]
[358335468,1744947043071,-33733.56498634,0.00120718,2]
[358335469,1744947043082,-151.0,0.00120718,120]
[358335470,1744947043092,-151.0,0.00120718,120]
[358335471,1744947043101,-151.0,0.00120718,30]
[358335472,1744947043111,-151.299591,0.00120718,120]
[358335473,1744947043120,-151.0,0.00120718,120]
[358335474,1744947043130,-151.0,0.00120718,120]
[358335475,1744947043139,-151.0,0.00120718,120]
[358335476,1744947043149,-151.0,0.00120718,120]
[358335477,1744947043158,-152.674263,0.00120718,120]
[358335478,1744947043167,-151.0,0.00120718,120]
[358335479,1744947043177,-151.0,0.00120718,120]
[358335480,1744947043186,-153.499435,0.00120718,120]
[358335481,1744947043195,-151.0,0.00120718,120]
[358335482,1744947043205,-151.0,0.00120718,120]
[358335483,1744947043214,-23900.0,0.00120728,30]
[358335484,1744947043223,-2222.0,0.00121,120]
[358335485,1744947043233,-152.730707,0.00121,120]
[358335486,1744947043242,-151.0,0.00121,120]
[358335487,1744947043251,-151.0,0.00121,120]
[358335488,1744947043259,-151.0,0.00121,120]
[358335489,1744947043268,-156.56,0.00121087,120]
[358335490,1744947043278,-500.0,0.00121509,120]
[358335492,1744947043288,-2222.0,0.00122,120]
[358335494,1744947043297,-951.40639523,0.0012214,80]
[358335495,1744947043307,-150.0,0.00122317,30]
[358335496,1744947043316,-267.51,0.0012265,30]
[358335497,1744947043325,-2017.61,0.00122915,2]
[358335498,1744947043335,-200.0,0.00122915,30]
[358335499,1744947043345,-1900.0,0.00123,120]
[358335500,1744947043355,-7745.07,0.00123,60]
[358335501,1744947043366,-1029.0,0.001233,21]
[358335502,1744947043377,-156.66,0.00123442,120]
[358335503,1744947043386,-16343.17,0.00123848,120]
[358335504,1744947043396,-151.0,0.00123848,120]
[358335505,1744947043406,-1000.0,0.001241,21]
[358335506,1744947043416,-253.0,0.001241,21]
[358335507,1744947043426,-760.0,0.001241,21]
[358335508,1744947043435,-200.0,0.00124561,30]
[358335509,1744947043444,-700.0,0.0012467,120]
[358335510,1744947043454,-211.36,0.00124694,120]
[358335511,1744947043464,-187.0531369,0.00125,120]
[358335512,1744947043473,-326.24,0.00125625,120]
[358335513,1744947043482,-156.56,0.00126353,120]
[358335514,1744947043491,-500.0,0.00126544,120]
[358335515,1744947043502,-2643.3811645,0.00127396,120]
[358335516,1744947043512,-500.0,0.00128188,120]
[358335517,1744947043521,-7745.07,0.00129,60]
[358335518,1744947043531,-509.61455883,0.00129034,120]
[358335519,1744947043540,-600.0,0.00129631,120]
[358335520,1744947043550,-9142.35262489,0.001299,2]
[358335521,1744947043560,-1344.99423776,0.001299,2]
[358335522,1744947043570,-9613.19182627,0.0013,120]
[358335523,1744947043579,-351.0,0.0013,120]
[358335524,1744947043589,-255436.70040443,0.0013,120]
[358335525,1744947043599,-151.0,0.0013,120]
[358335526,1744947043609,-151.188286,0.0013,120]
[358335527,1744947043623,-151.0,0.0013,30]
[358335528,1744947043633,-465078.13416841,0.0013,120]
[358335529,1744947043643,-151.0,0.0013,120]
[358335530,1744947043652,-151.0,0.0013,120]
[358335531,1744947043662,-151.0,0.0013,120]
[358335532,1744947043672,-151.0,0.0013,120]
[358335533,1744947043682,-151.0,0.0013,120]
[358335534,1744947043692,-151.0,0.0013,120]
[358335535,1744947043702,-151.0,0.0013,120]
[358335536,1744947043712,-1046.72565781,0.0013,120]
[358335537,1744947043721,-151.0,0.0013,120]
[358335538,1744947043731,-151.0,0.0013,120]
[358335539,1744947043740,-151.0,0.0013,120]
[358335540,1744947043749,-151.0,0.0013,120]
[358335541,1744947043759,-1472.873607,0.0013,120]
[358335542,1744947043768,-151.0,0.0013,120]
[358335543,1744947043778,-151.0,0.0013,120]
[358335544,1744947043788,-165.28,0.00130178,120]
[358335545,1744947043797,-156.56,0.0013162,120]
[358335546,1744947043807,-338.46552385,0.00133698,120]
[358335547,1744947043816,-1157.86,0.00133705,120]
[358335548,1744947043825,-3450.06494937,0.00133728,15]
[358335549,1744947043835,-1485.32535,0.00134,120]
[358335550,1744947043844,-380.31355117,0.00134,120]
[358335551,1744947043854,-910.75742454,0.00134172,120]
[358335552,1744947043866,-256.03861324,0.00134186,28]
[358335553,1744947043875,-150.0,0.00134241,120]
[358335554,1744947043885,-302.083622,0.00134498,120]
[358335555,1744947043894,-4100.00000007,0.001345,120]
[358335556,1744947043903,-193.37308347,0.001348,29]
[358335557,1744947043913,-324.76098463,0.0013489,30]
[358335558,1744947043922,-187059.66524584,0.001349,120]
[358335559,1744947043947,-22611.2559014,0.001349,120]
[358335560,1744947043958,-1735.81173418,0.001349,120]
[358335561,1744947043969,-309.4754329,0.001349,120]
[358335562,1744947043981,-1756.1,0.001349,120]
[358335563,1744947043993,-520.933954,0.001349,120]
[358335564,1744947044045,-151.0,0.00121,120]
[358335565,1744947044055,-1139.44294488,0.001349,120]
[358335566,1744947044066,-622.40087519,0.001349,120]
[358335567,1744947044078,-1015.2510853,0.001349,120]
[358335568,1744947044938,-150.0,0.0007,120]
[358335569,1744947044948,-150.0,0.0007,120]
[358335570,1744947044958,-151.0,0.0013,120]
[358335571,1744947044968,-610.29224118,0.001349,120]
[358335572,1744947044980,-341.46735558,0.001349,120]
[358335573,1744947045764,-151.0,0.00069,120]
[358335574,1744947045774,-151.0,0.0008,120]
[358335575,1744947045783,-151.0,0.00121,120]
[358335576,1744947045793,-221.79429573,0.001349,120]
[358335577,1744947045821,-10826.15425522,0.001349,120]
[358335578,1744947045832,-4445.04299833,0.001349,120]
[358335579,1744947045844,-11481.384185,0.001349,120]
[358335580,1744947045941,-1654.5,0.001349,120]
[358335581,1744947045953,-279.88714531,0.001349,120]
[358335582,1744947045965,-1907.42836594,0.001349,120]
[358335583,1744947046034,-1641.0418765,0.001349,120]
[358335584,1744947046049,-727.56099999,0.001349,120]
[358335585,1744947046060,-4545.31242003,0.001349,120]
[358335586,1744947046090,-23.2252159,0.001349,120]
[358335587,1744947046110,-50219.91359124,0.001349,120]
[358335588,1744947046123,-1042.4337992,0.001349,120]
[358335632,1744947937121,-150.0,0.00034548,10]
[358335633,1744947937141,-150.0,0.00045589,10]
[358335634,1744947937161,-129.62259056,0.0005,120]
[358335636,1744948010070,-140.35585247,0.0005,120]
[358335637,1744948010092,-219.10443601,0.0005096,2]
[358335638,1744948030086,-152.99,0.00040407,2]
[358335639,1744948030107,-30.89556399,0.0005096,2]
[358335640,1744948030127,-250.0,0.00051591,2]
[358335641,1744948030147,-150.0,0.00052,2]
[358335642,1744948030168,-156.27,0.00052019,120]
[358335643,1744948030188,-841.20661874,0.00052019,30]
[358335644,1744948030209,-238.57010929,0.00052019,120]
[358335645,1744948031094,-5.68408971,0.00052019,120]
[358335646,1744948031117,-151.0,0.00052019,120]
[358335647,1744948031139,-150.0,0.00054794,120]
[358335648,1744948031161,-95.73656412,0.00055,111]
[358335649,1744948042069,-152.0,0.00049,120]
[358335650,1744948042090,-104.92214436,0.00055,111]
[358335651,1744948044086,-149.34129152,0.00055,111]
[358335652,1744948044108,-250.0,0.00055,2]
[358335653,1744948044130,-150.0,0.00055,111]
[358335654,1744948044151,-150.0,0.00056164,120]
[358335655,1744948044174,-267.8181993,0.00056699,10]
[358335656,1744948049148,-166.45,0.00042484,5]
[358335657,1744948049170,-675.35559201,0.000566,2]
[358335658,1744948051124,-177.32033187,0.000566,2]
[358335659,1744948051146,-432.1818007,0.00056699,10]
[358335660,1744948051167,-371.6,0.000567,2]
[358335661,1744948051192,-153.43,0.000567,57]
[358335662,1744948051218,-153.43,0.000567,57]
[358335663,1744948051246,-153.43,0.000567,57]
[358335664,1744948051271,-153.43,0.000567,57]
[358335665,1744948051296,-153.43,0.000567,57]
[358335666,1744948051321,-153.43,0.000567,57]
[358335667,1744948051345,-153.43,0.000567,57]
[358335668,1744948051370,-153.43,0.000567,57]
[358335669,1744948051395,-153.43,0.000567,57]
[358335670,1744948051420,-153.43,0.000567,57]
[358335671,1744948051445,-153.43,0.000567,57]
[358335672,1744948051467,-150.0,0.00057534,120]
[358335673,1744948051492,-150.0,0.00058904,120]
[358335674,1744948051670,-300.0,0.00059587,10]
[358335675,1744948051698,-150.0,0.00060273,120]
[358335676,1744948051718,-150.0,0.00061643,120]
[358335677,1744948051738,-150.0,0.00063013,120]
[358335678,1744948051759,-150.0,0.00064383,120]
[358335679,1744948051780,-3212.235428,0.00065097,30]
[358335680,1744948051800,-988.39819996,0.00065424,120]
[358335681,1744948051821,-150.0,0.00065753,120]
[358335682,1744948051841,-150.0,0.00067123,120]
[358335683,1744948051862,-500.0,0.00068008,120]
[358335684,1744948051883,-523.0,0.000681,120]
[358335685,1744948051904,-151.0,0.00068493,120]
[358335686,1744948051925,-150.0,0.00068493,120]
[358335687,1744948051946,-207.0,0.00068493,12]
[358335688,1744948051967,-200.7252664,0.00069863,120]
[358335689,1744948051986,-500.0,0.00073143,120]
[358335690,1744948052008,-198.79,0.00077011,2]
[358335691,1744948052030,-198.79,0.00079275,2]
[358335692,1744948052050,-283.069257,0.0008,120]
[358335693,1744948052070,-174.27462929,0.00080408,2]
[358335700,1744948231867,-152.14463344,0.0005203,120]
[358335701,1744948231877,-150.0,0.0005203,30]
[358335702,1744948231886,-254.259999,0.0005203,30]
[358335703,1744948231895,-350.0,0.00057232,111]
[358335704,1744948231905,-250.0,0.00057232,2]
[358335705,1744948231915,-350.0,0.00057233,111]
[358335706,1744948231924,-350.0,0.00064818,111]
[358335707,1744948231933,-600.0,0.00067981,120]
[358335708,1744948231942,-212.4617084,0.00071542,120]
[358335709,1744948231951,-700.0,0.00071642,120]
[358335710,1744948231960,-2.87537071,0.00080408,2]
[358335711,1744948231969,-319.34,0.00081089,120]
[358335712,1744948231978,-212.59,0.00081281,2]
[358335713,1744948231987,-198.79,0.00081539,2]
[358335714,1744948231996,-4404.18739062,0.00081913,2]
[358335715,1744948232008,-179.99260938,0.00081913,2]
[358335716,1744948232017,-150.0,0.0008271,30]
[358335717,1744948232027,-500.0,0.00083569,30]
[358335718,1744948232036,-1000.0,0.00083569,120]
[358335719,1744948232045,-198.79,0.00083802,2]
[358335720,1744948232054,-2049.39,0.00083883,2]
[358335721,1744948232063,-1000.0,0.0008408,120]
[358335722,1744948232072,-165.21,0.00084525,30]
[358335723,1744948232082,-500.0,0.0008509,120]
[358335724,1744948232091,-199.44,0.00085214,120]
[358335725,1744948232100,-924.67,0.00085672,120]
[358335726,1744948232109,-198.79,0.00086066,2]
[358335727,1744948232118,-198.79,0.0008833,2]
[358335728,1744948232127,-198.79,0.00090594,2]
[358335729,1744948232137,-319.34,0.00091225,120]
[358335730,1744948232146,-700.0,0.00091314,120]
[358335731,1744948232156,-278.07,0.00091352,120]
[358335732,1744948232165,-910.63,0.00091481,2]
[358335733,1744948232174,-500.0,0.00092338,120]
[358335734,1744948232183,-500.0,0.00092338,120]
[358335735,1744948232193,-500.0,0.00092338,120]
[358335736,1744948232202,-500.0,0.00092338,120]
[358335737,1744948232211,-500.0,0.00092338,120]
[358335738,1744948232220,-500.0,0.00092338,120]
[358335739,1744948232229,-500.0,0.00092338,120]
[358335740,1744948232239,-500.0,0.00092338,120]
[358335741,1744948232249,-500.0,0.00092338,120]
[358335742,1744948232258,-500.0,0.00092338,120]
[358335743,1744948232267,-500.0,0.00092338,120]
[358335744,1744948232277,-500.0,0.00092338,120]
[358335745,1744948232287,-500.0,0.00092338,120]
[358335746,1744948232297,-500.0,0.00092338,120]
[358335747,1744948232307,-500.0,0.00092338,120]
[358335749,1744948232316,-500.0,0.00092338,120]
[358335750,1744948232325,-500.0,0.00092338,120]
[358335751,1744948232335,-500.0,0.00092338,120]
[358335752,1744948232346,-500.0,0.00092338,120]
[358335753,1744948232357,-500.0,0.00092338,120]
[358335754,1744948232367,-500.0,0.00092338,120]
[358335755,1744948232377,-500.0,0.00092338,120]
[358335756,1744948232387,-500.0,0.00092338,120]
[358335757,1744948232397,-500.0,0.00092338,120]
[358335758,1744948232406,-500.0,0.00092338,120]
[358335759,1744948232415,-500.0,0.00092338,120]
[358335760,1744948232425,-500.0,0.00092338,120]
[358335761,1744948232435,-500.0,0.00092338,120]
[358335762,1744948232444,-500.0,0.00092338,120]
[358335763,1744948232453,-500.0,0.00092338,120]
[358335764,1744948232462,-500.0,0.00092338,120]
[358335765,1744948232472,-500.0,0.00092338,120]
[358335766,1744948232481,-500.0,0.00092338,120]
[358335767,1744948232491,-500.0,0.00092338,120]
[358335768,1744948232500,-500.0,0.00092338,120]
[358335769,1744948232510,-500.0,0.00092338,120]
[358335770,1744948232520,-500.0,0.00092338,120]
[358335771,1744948232531,-500.0,0.00092338,120]
[358335772,1744948232541,-500.0,0.00092338,120]
[358335773,1744948232551,-500.0,0.00092338,120]
[358335774,1744948232561,-500.0,0.00092338,120]
[358335775,1744948232572,-500.0,0.00092338,120]
[358335776,1744948232582,-500.0,0.00092338,120]
[358335777,1744948232592,-500.0,0.00092338,120]
[358335778,1744948232601,-500.0,0.00092338,120]
[358335779,1744948232611,-471.80346058,0.00092338,120]
[358335780,1744948232620,-500.0,0.00092338,120]
[358335781,1744948232630,-500.0,0.00092338,120]
[358335782,1744948232639,-500.0,0.00092338,120]
[358335783,1744948232648,-500.0,0.00092338,120]
[358335784,1744948232658,-500.0,0.00092338,120]
[358335785,1744948232669,-500.0,0.00092338,120]
[358335786,1744948232679,-500.0,0.00092338,120]
[358335787,1744948232689,-500.0,0.00092338,120]
[358335788,1744948232698,-500.0,0.00092338,120]
[358335789,1744948232708,-500.0,0.00092338,120]
[358335790,1744948232718,-500.0,0.00092338,120]
[358335791,1744948232728,-500.0,0.00092338,120]
[358335792,1744948232738,-500.0,0.00092338,120]
[358335793,1744948232747,-500.0,0.00092338,120]
[358335794,1744948232757,-450.0,0.00092338,120]
[358335795,1744948232767,-500.0,0.00092338,120]
[358335796,1744948232776,-500.0,0.00092338,120]
[358335797,1744948232786,-500.0,0.00092338,120]
[358335798,1744948232795,-500.0,0.00092338,120]
[358335799,1744948232804,-500.0,0.00092338,120]
[358335800,1744948232814,-500.0,0.00092338,120]
[358335801,1744948232823,-500.0,0.00092338,120]
[358335802,1744948232832,-500.0,0.00092338,120]
[358335803,1744948232842,-500.0,0.00092338,120]
[358335804,1744948232851,-500.0,0.00092338,120]
[358335805,1744948232860,-500.0,0.00092338,120]
[358335806,1744948232870,-500.0,0.00092338,120]
[358335807,1744948232879,-500.0,0.00092338,120]
[358335808,1744948232888,-500.0,0.00092338,120]
[358335809,1744948232898,-500.0,0.00092338,120]
[358335810,1744948232907,-500.0,0.00092338,120]
[358335811,1744948232916,-500.0,0.00092338,120]
[358335812,1744948232925,-500.0,0.00092338,120]
[358335813,1744948232934,-500.0,0.00092338,120]
[358335814,1744948232944,-500.0,0.00092338,120]
[358335815,1744948232953,-23900.0,0.00092339,30]
[358335816,1744948232962,-198.79,0.00092858,2]
[358335817,1744948232972,-166.37,0.00093341,120]
[358335818,1744948232981,-729.75,0.00093341,30]
[358335819,1744948232991,-536.28,0.00093341,30]
[358335820,1744948233000,-163.8,0.00093341,120]
[358335821,1744948233010,-1000.0,0.00094015,120]
[358335822,1744948233020,-157.041813,0.00094498,120]
[358335823,1744948233030,-198.79,0.00095122,2]
[358335824,1744948233040,-162.38,0.00095309,120]
[358335825,1744948233050,-198.79,0.00097386,2]
[358335826,1744948233060,-3041.1115,0.000974,2]
[358335827,1744948233070,-155.041813,0.00097498,120]
[358335828,1744948233079,-2366.37401317,0.000975,120]
[358335829,1744948233089,-261.15497066,0.000975,120]
[358335830,1744948233098,-169.462,0.00097809,120]
[358335831,1744948233108,-170.31,0.00097809,10]
[358335832,1744948233118,-806.887,0.00097809,120]
[358335833,1744948233128,-10089.85,0.00098429,2]
[358335834,1744948233139,-163.8,0.00099563,120]
[358335835,1744948233149,-198.79,0.0009965,2]
[358335836,1744948233159,-224.671,0.00099898,2]
[358335837,1744948233169,-751.2887,0.00099899,120]